bitfinex-derivatives/quotes_ETHF0:USTF0_20240829
["timestamp","ask_amount","ask_price","bid_price","bid_amount"]
[1724915044445,7.5856985,2555.4,2555.3,2.09456843]
[1724915047555,4.3778985,2555.4,2555.3,2.09456843]
[1724915047953,7.55928885,2555.5,2555.3,2.09456843]
[1724915048264,3.59897,2555.5,2555.3,2.09456843]
[1724915048555,4.35148885,2555.4,2555.3,2.09456843]
[1724915048762,4.74267885,2555.4,2555.3,0.00586843]
[1724915049059,10.06627885,2555.4,2555.3,0.00586843]
[1724915050060,8.65627885,2555.4,2555.3,0.00586843]
[1724915052958,11.86407885,2555.4,2555.3,0.00586843]
[1724915056052,12.84204885,2555.4,2555.3,0.00586843]
[1724915057359,11.86407885,2555.4,2555.3,0.00586843]
[1724915060159,7.95047885,2555.4,2555.3,0.00586843]
[1724915060357,11.86407885,2555.4,2555.3,0.00586843]
[1724915061765,22.22204885,2555.4,2555.3,0.00586843]
[1724915063164,21.24407885,2555.4,2555.3,0.00586843]
[1724915063469,7.95047885,2555.4,2555.3,0.00586843]
[1724915066170,7.55928885,2555.4,2555.3,0.00586843]
[1724915067164,7.95047885,2555.4,2555.3,0.00586843]
[1724915067867,7.55928885,2555.4,2555.3,0.00586843]
[1724915068270,7.95047885,2555.4,2555.3,0.00586843]
[1724915070173,7.55928885,2555.4,2555.3,0.00586843]
[1724915070475,7.95047885,2555.4,2555.3,0.00586843]
[1724915071776,7.55928885,2555.4,2555.3,0.00586843]
[1724915072177,7.95047885,2555.4,2555.3,0.00586843]
[1724915074275,14.25204885,2555.4,2555.3,0.00586843]
[1724915074575,0.39124,2555.1,2554.8,2.43707]
[1724915074776,1.44185,2555.0,2554.9,0.41153208]
[1724915074975,6.54000148,2555.0,2554.8,2.0458]
[1724915075176,6.54000148,2555.0,2554.8,2.43708]
[1724915075569,6.54000148,2555.0,2554.8,2.0458]
[1724915075767,7.55875148,2555.0,2554.7,3.2078]
[1724915075971,0.39129,2554.8,2554.6,0.00586843]
[1724915076380,4.69523543,2554.7,2554.6,0.00586843]
[1724915076885,0.39129,2554.8,2554.6,0.00586843]
[1724915077079,4.19004672,2554.7,2554.6,0.00586843]
[1724915077280,0.39129,2554.8,2554.6,0.00586843]
[1724915077577,4.19004672,2554.7,2554.6,0.00586843]
[1724915077781,13.11353672,2554.7,2554.6,1.52423825]
[1724915077979,21.07907672,2554.7,2554.6,1.23690669]
[1724915078183,0.39132,2554.5,2554.4,2.02449309]
[1724915078383,1.80132,2554.5,2554.4,2.02449309]
[1724915078587,9.93711203,2554.5,2554.4,2.02449309]
[1724915078787,11.97161203,2554.5,2554.4,2.02449309]
[1724915079788,17.97161203,2554.5,2554.4,2.02449309]
[1724915079991,18.94993203,2554.5,2554.4,2.02449309]
[1724915082693,18.94993203,2554.5,2554.2,0.00586843]
[1724915082694,0.39135,2554.3,2554.2,0.00586843]
[1724915082987,9.55312688,2554.3,2554.2,0.00586843]
[1724915083189,13.46832688,2554.3,2554.2,0.00586843]
[1724915087686,14.44671688,2554.3,2554.2,0.00586843]
[1724915087985,21.42510688,2554.3,2554.2,8.43e-06]
[1724915092789,18.21730688,2554.3,2554.2,8.43e-06]
[1724915092988,21.42510688,2554.3,2554.2,8.43e-06]
[1724915099694,15.42510688,2554.3,2554.2,8.43e-06]
[1724915100200,9.12151688,2554.3,2554.2,8.43e-06]
[1724915100492,6.19817688,2554.3,2554.2,4.30657843]
[1724915100688,1.63175685,2554.7,2554.5,0.39132]
[1724915100884,1.63175685,2554.7,2554.6,1.80131]
[1724915101200,6.11226231,2554.7,2554.6,42.60131]
[1724915101393,6.11226231,2554.7,2554.6,46.1244]
[1724915101894,6.50356231,2554.7,2554.3,3.66335]
[1724915102095,6.50356231,2554.7,2554.4,0.39134]
[1724915102096,6.11226231,2554.7,2554.4,0.39134]
[1724915102293,6.11226231,2554.7,2554.5,40.8]
[1724915102493,6.11226231,2554.7,2554.5,44.7144]
[1724915102690,0.39132,2554.6,2554.3,3.272]
[1724915102896,6.11226231,2554.7,2554.3,3.272]
[1724915102897,6.50356231,2554.7,2554.3,3.272]
[1724915103207,4.12295771,2554.5,2554.4,40.8]
[1724915103398,4.12295771,2554.6,2554.4,44.7144]
[1724915103595,4.51426771,2554.6,2554.4,40.8]
[1724915103804,2.02305685,2554.7,2554.4,41.3646]
[1724915103987,4.14431278,2554.5,2554.4,41.3646]
[1724915104192,4.14431278,2554.6,2554.4,41.3646]
[1724915104389,4.14431278,2554.6,2554.4,45.279]
[1724915105604,4.14431278,2554.6,2554.4,41.3646]
[1724915105897,4.14431278,2554.6,2554.4,45.279]
[1724915106313,3.94211278,2554.6,2554.5,3.9144]
[1724915106601,3.26281278,2554.6,2554.5,4.30572]
[1724915106792,3.26281278,2554.6,2554.5,10.30572]
[1724915106992,3.26281278,2554.6,2554.5,9.9144]
[1724915107296,3.26281278,2554.6,2554.5,13.51352]
[1724915108195,0.78768685,2554.6,2554.5,16.89352]
[1724915108500,0.22228685,2554.6,2554.5,16.89352]
[1724915110297,0.22228685,2554.6,2554.5,7.1222]
[1724915110503,0.22228685,2554.6,2554.5,13.1222]
[1724915110703,0.22228685,2554.6,2554.5,7.51352]
[1724915111199,0.22228685,2554.6,2554.5,7.1222]
[1724915113594,0.22228685,2554.6,2554.5,7.51352]
[1724915113791,0.22228685,2554.6,2554.5,16.89352]
[1724915114101,0.00586843,2555.2,2555.1,0.39123]
[1724915114300,0.39112,2555.9,2555.4,0.39118]
[1724915114500,6.34245685,2556.0,2555.5,0.39116]
[1724915114707,4.40045016,2555.8,2555.5,0.39116]
[1724915115006,0.69968772,2555.9,2555.5,0.39116]
[1724915115201,0.39111,2555.9,2555.4,3.2078]
[1724915115419,4.60820136,2555.9,2555.4,3.21366843]
[1724915115612,4.60820136,2555.9,2555.4,3.60485843]
[1724915118715,4.60820136,2555.9,2555.4,3.21366843]
[1724915118900,0.39113,2555.8,2555.4,3.21366843]
[1724915119205,4.33095831,2555.7,2555.4,3.21366843]
[1724915119407,4.33095831,2555.7,2555.4,3.60485843]
[1724915119605,4.33095831,2555.8,2555.4,3.60485843]
[1724915119913,0.39112,2555.9,2555.4,3.60485843]
[1724915120310,4.44831605,2555.8,2555.4,3.60485843]
[1724915120904,4.83944605,2555.8,2555.4,3.21366843]
[1724915121212,0.9689,2555.7,2555.4,3.21366843]
[1724915121615,5.17275842,2555.7,2555.4,3.60485843]
[1724915122810,5.17275842,2555.7,2555.4,3.21366843]
[1724915123107,1.30066,2555.6,2555.4,3.21366843]
[1724915123519,4.54121958,2555.5,2555.4,3.21366843]
[1724915124013,4.54121958,2555.5,2555.4,7.12726843]
[1724915127706,4.93238958,2555.5,2555.4,7.12726843]
[1724915128311,4.93238958,2555.5,2555.4,3.21366843]
[1724915128517,4.93238958,2555.5,2555.4,0.00586843]
[1724915129512,4.54121958,2555.5,2555.4,0.00586843]
[1724915129911,4.93238958,2555.5,2555.4,0.00586843]
[1724915134012,4.54121958,2555.5,2555.4,0.00586843]
[1724915134216,4.54121958,2555.5,2555.4,3.91946843]
[1724915135315,4.93238958,2555.5,2555.4,0.00586843]
[1724915139218,4.54121958,2555.5,2555.4,0.39705843]
[1724915141820,4.54121958,2555.5,2555.4,7.51845843]
[1724915152732,4.54121958,2555.5,2555.4,10.86490873]
[1724915153024,1.9847,2555.7,2555.6,0.39116]
[1724915153226,1.9847,2555.7,2555.6,1.80116]
[1724915153529,6.15855738,2555.7,2555.6,1.80116]
[1724915154031,6.15855738,2555.7,2555.6,2.81245029]
[1724915154729,6.15855738,2555.7,2555.6,6.07845029]
[1724915156228,6.15855738,2555.7,2555.6,6.4905222]
[1724915157224,6.15855738,2555.7,2555.6,8.44674338]
[1724915158337,6.15855738,2555.7,2555.6,8.94544117]
[1724915158528,6.15855738,2555.7,2555.6,7.43558679]
[1724915158827,0.8739,2555.9,2555.8,0.39112]
[1724915159020,0.8739,2555.9,2555.8,12.80859196]
[1724915159225,5.07674735,2555.9,2555.8,12.80859196]
[1724915159428,5.07674735,2555.9,2555.8,11.28996894]
[1724915159625,5.07674735,2555.9,2555.8,12.80876712]
[1724915160027,5.07674735,2555.9,2555.8,12.80875726]
[1724915160222,4.20284735,2555.9,2555.8,17.28995908]
[1724915160425,0.93086843,2556.0,2555.9,1.36889]
[1724915160426,0.00586843,2556.0,2555.9,1.36889]
[1724915160627,0.9023,2556.4,2556.3,0.39105]
[1724915160828,0.9023,2556.4,2556.3,5.18152503]
[1724915161131,3.84178352,2556.4,2556.3,60.81729514]
[1724915161429,0.9023,2556.9,2556.8,0.39097]
[1724915161633,0.9023,2556.9,2556.8,5.06697]
[1724915161826,5.11522646,2556.9,2556.8,8.97817]
[1724915162323,5.11522646,2556.9,2556.8,8.5872]
[1724915162530,5.11522646,2556.9,2556.8,4.676]
[1724915162928,5.11522646,2556.9,2556.7,3.2078]
[1724915163135,5.11522646,2556.9,2556.6,4.67786843]
[1724915163733,5.11522646,2556.9,2556.6,1.41586843]
[1724915163936,5.11522646,2556.9,2556.8,1.41]
[1724915164126,5.11522646,2556.9,2556.7,3.38]
[1724915164329,5.11522646,2556.9,2556.8,4.30217]
[1724915164640,5.11522646,2556.9,2556.8,7.50997]
[1724915165437,5.11522646,2556.9,2556.8,3.2078]
[1724915165628,9.02642646,2556.9,2556.6,0.00586843]
[1724915165933,7.2912,2556.8,2556.1,8.13116467]
[1724915166231,0.39101,2556.6,2556.1,47.9198]
[1724915166433,7.58178546,2556.7,2556.1,48.31088]
[1724915166434,0.8599,2556.5,2556.1,48.31088]
[1724915166737,6.14538546,2556.5,2556.2,3.38]
[1724915167129,6.14538546,2556.5,2556.2,3.77106]
[1724915168537,6.14538546,2556.5,2556.2,3.38]
[1724915169130,0.9299,2556.4,2556.2,3.77106]
[1724915169330,0.34318308,2556.4,2556.2,3.38]
[1724915169530,4.47588745,2556.3,2556.2,3.38]
[1724915170341,4.47588745,2556.3,2556.2,7.292]
[1724915171437,4.47588745,2556.3,2556.2,3.38]
[1724915172536,4.47588745,2556.3,2556.1,47.92566843]
[1724915172733,4.47588745,2556.3,2556.1,7.12566843]
[1724915172734,4.86694745,2556.3,2556.1,7.12566843]
[1724915173240,4.86693745,2556.3,2556.1,3.21366843]
[1724915173846,0.39106,2556.2,2556.1,0.00586843]
[1724915174244,4.51519859,2556.2,2556.1,0.00586843]
[1724915174545,4.51521859,2556.2,2555.9,40.8]
[1724915174749,0.8734,2556.1,2555.9,40.8]
[1724915175041,4.15902291,2556.0,2555.9,40.8]
[1724915175446,4.15902291,2556.0,2555.7,0.00586843]
[1724915175637,0.8824,2555.9,2555.7,0.00586843]
[1724915175839,0.8824,2555.9,2555.7,40.80586843]
[1724915176038,4.15902291,2555.8,2555.7,40.80586843]
[1724915176438,4.55014291,2555.8,2555.7,40.80586843]
[1724915176639,4.55014291,2555.8,2555.3,3.261]
[1724915176640,11.27962291,2555.8,2555.3,3.261]
[1724915176835,0.8734,2555.7,2555.3,6.641]
[1724915177044,0.8734,2555.7,2555.5,0.39116]
[1724915177247,4.43497777,2555.6,2555.5,0.39116]
[1724915177639,5.35027777,2555.6,2555.5,4.30396]
[1724915177836,5.35027777,2555.6,2555.5,4.30397]
[1724915178347,5.35027777,2555.6,2555.4,40.8]
[1724915178749,5.35027777,2555.6,2555.4,41.19119]
[1724915181642,5.35027777,2555.6,2555.4,40.8]
[1724915182043,5.35027777,2555.6,2555.5,0.39117]
[1724915189959,5.35027777,2555.6,2555.4,41.19118]
[1724915192451,5.35027777,2555.6,2555.4,40.8]
[1724915192651,0.9052,2555.5,2555.4,40.8]
[1724915192852,0.9052,2555.5,2555.4,41.19119]
[1724915193057,5.23285779,2555.5,2555.4,41.19119]
[1724915193660,4.32765779,2555.5,2555.4,41.19119]
[1724915195570,4.32765779,2555.5,2555.4,40.8]
[1724915195953,4.32765779,2555.5,2555.4,41.19119]
[1724915197461,4.32765779,2555.5,2555.3,6.47466843]
[1724915197971,4.32765779,2555.5,2555.3,7.88466843]
[1724915200763,4.32765779,2555.5,2555.3,4.67686843]
[1724915201157,4.32765779,2555.5,2555.3,8.27586843]
[1724915201357,4.32765779,2555.5,2555.3,7.88466843]
[1724915201562,4.32765779,2555.5,2555.4,0.39119]
[1724915202264,4.32765779,2555.5,2555.4,41.19119]
[1724915204577,4.32765779,2555.5,2555.4,40.8]
[1724915206368,4.71882779,2555.5,2555.4,40.8]
[1724915206571,4.32765779,2555.5,2555.3,6.47466843]
[1724915207068,4.32765779,2555.5,2555.3,0.00586843]
[1724915207069,8.24125779,2555.5,2555.3,0.00586843]
[1724915207369,0.97805,2555.2,2554.7,1.01136467]
[1724915207672,4.6178,2554.8,2554.4,1.01136467]
[1724915207977,0.39133,2554.5,2554.1,1.41]
[1724915208176,0.39132,2554.6,2554.2,40.8]
[1724915208373,5.29442414,2554.4,2554.3,1.41]
[1724915208778,0.8475,2554.4,2554.3,1.41]
[1724915208973,5.29442414,2554.4,2554.3,1.41]
[1724915210078,5.29442414,2554.4,2554.2,40.8]
[1724915210479,0.8162,2554.3,2554.2,40.8]
[1724915210775,5.32813335,2554.3,2554.2,40.8]
[1724915211285,5.32813335,2554.3,2554.2,41.19137]
[1724915211579,4.39822567,2554.3,2554.2,48.31437]
[1724915211782,2.42572456,2554.3,2554.2,49.32573467]
[1724915212180,2.42572456,2554.3,2554.2,51.2827517]
[1724915212386,2.42572456,2554.3,2554.2,49.32573467]
[1724915213970,0.37485613,2554.3,2554.2,55.32573467]
[1724915214177,0.00586843,2554.5,2554.4,0.39134]
[1724915214378,0.00586843,2554.5,2554.4,3.77134]
[1724915214579,0.00586843,2554.5,2554.4,8.70115322]
[1724915215790,0.00586843,2554.5,2554.4,16.65806322]
[1724915215971,0.00586843,2554.5,2554.4,14.70115322]
[1724915216371,0.00586843,2554.5,2554.4,8.70115322]
[1724915216986,0.00586843,2554.5,2554.4,7.68574]
[1724915217380,0.00586843,2554.5,2554.4,8.70115322]
[1724915218073,0.00586843,2554.5,2554.4,7.68574]
[1724915218285,0.00586843,2554.5,2554.4,8.70115322]
[1724915219490,0.00586843,2554.5,2554.4,10.65814664]
[1724915219991,0.00586843,2554.5,2554.4,11.15966617]
[1724915220179,0.00586843,2554.5,2554.4,11.57432815]
[1724915220374,0.7706,2555.0,2554.9,0.39126]
[1724915220581,0.7706,2555.0,2554.9,7.03026]
[1724915220790,0.7706,2555.0,2554.9,10.94386]
[1724915222685,0.00586843,2555.2,2555.1,0.39123]
[1724915222886,0.00586843,2555.2,2555.1,3.59903]
[1724915223090,4.53784551,2555.2,2555.1,3.59903]
[1724915225785,4.53784551,2555.2,2555.1,3.2078]
[1724915226095,4.53784551,2555.2,2555.1,6.4628]
[1724915226691,8.45144551,2555.2,2554.9,1.01498114]
[1724915226894,1.6411,2555.1,2554.8,6.4628]
[1724915227093,0.8481,2555.0,2554.8,6.4628]
[1724915227296,5.06471669,2555.0,2554.8,6.85408]
[1724915227587,5.06471669,2555.0,2554.9,0.39126]
[1724915227794,5.06471669,2555.0,2554.8,11.24905114]
[1724915227983,5.06471669,2555.0,2554.9,0.39126]
[1724915228188,5.06471669,2555.0,2554.9,1.01498114]
[1724915228393,5.06471669,2555.0,2554.9,0.39126]
[1724915228993,5.06471669,2555.0,2554.8,11.24905114]
[1724915229192,5.06471669,2555.0,2554.8,10.85778114]
[1724915229486,4.47769731,2555.0,2554.8,11.24905114]
[1724915230289,4.47769731,2555.0,2554.8,10.85778114]
[1724915230494,4.47769731,2555.0,2554.9,0.39126]
[1724915231189,4.47769731,2555.0,2554.9,1.40624114]
[1724915231801,4.47769731,2555.0,2554.9,0.39126]
[1724915232703,4.47769731,2555.0,2554.9,1.40624114]
[1724915232898,4.47769731,2555.0,2554.9,0.39126]
[1724915233098,4.47769731,2555.0,2554.9,1.40624114]
[1724915233402,4.47769731,2555.0,2554.9,0.39126]
[1724915233790,4.47769731,2555.0,2554.8,11.24905114]
[1724915234102,4.47769731,2555.0,2554.9,3.255]
[1724915240500,4.47769731,2555.0,2554.9,3.64626]
[1724915240894,4.47769731,2555.0,2554.9,3.255]
[1724915242603,4.47769731,2555.0,2554.9,3.64626]
[1724915243303,4.47769731,2555.0,2554.9,4.26998114]
[1724915243498,4.47769731,2555.0,2554.9,3.255]
[1724915244307,4.47769731,2555.0,2554.9,4.26998114]
[1724915244515,4.47769731,2555.0,2554.9,3.255]
[1724915245612,4.21661669,2555.0,2554.9,8.57484114]
[1724915245802,0.77706843,2555.2,2555.1,0.39123]
[1724915246002,0.77706843,2555.2,2555.1,7.51263]
[1724915246207,0.77706843,2555.2,2555.1,8.94347521]
[1724915246514,0.77706843,2555.2,2555.1,9.88362605]
[1724915246710,0.77706843,2555.2,2555.1,11.40609776]
[1724915247014,0.77706843,2555.2,2555.1,9.88362605]
[1724915247211,0.77706843,2555.2,2555.1,11.40609776]
[1724915247908,0.77706843,2555.2,2555.1,9.88362605]
[1724915248107,0.77706843,2555.2,2555.1,11.40609776]
[1724915248905,0.77706843,2555.2,2555.1,4.63967018]
[1724915249101,0.77706843,2555.2,2555.1,4.22519514]
[1724915249504,4.98405762,2555.2,2555.0,1.01739514]
[1724915249711,0.8116,2555.1,2555.0,4.27292299]
[1724915249903,0.8116,2555.1,2555.0,6.64467203]
[1724915250103,0.8116,2555.1,2555.0,5.62674904]
[1724915250104,5.01858919,2555.1,2555.0,5.62674904]
[1724915250603,5.01858919,2555.1,2555.0,6.64483966]
[1724915250801,5.01858919,2555.1,2555.0,1.01814603]
[1724915251012,5.01858919,2555.1,2554.8,4.27314603]
[1724915251204,5.40981919,2555.1,2554.8,4.27314603]
[1724915251512,0.39126,2554.9,2554.7,4.22594603]
[1724915251714,0.7899,2554.8,2554.7,4.22594603]
[1724915252013,4.86280657,2554.8,2554.7,4.64118997]
[1724915252408,4.86280657,2554.8,2554.7,6.59819135]
[1724915252699,5.25408657,2554.8,2554.7,4.6414149]
[1724915252907,5.25408657,2554.8,2554.6,1.01814603]
[1724915253212,1.6174,2554.7,2554.5,1.01956451]
[1724915253607,4.14650033,2554.6,2554.5,1.01956451]
[1724915253808,4.14650033,2554.6,2554.5,0.4154045]
[1724915254002,4.14650033,2554.6,2554.5,1.43493751]
[1724915254608,4.14650033,2554.6,2554.5,1.01953301]
[1724915254920,0.39134,2554.4,2554.3,4.22755314]
[1724915255121,0.39137,2554.2,2554.0,1.02572172]
[1724915255414,0.39137,2554.2,2554.0,0.00586843]
[1724915255603,0.39137,2554.2,2554.0,40.80586843]
[1724915255604,4.07807088,2554.1,2554.0,40.80586843]
[1724915256610,4.08753775,2554.2,2554.0,40.80586843]
[1724915256812,1.16796,2554.3,2554.0,40.80586843]
[1724915257218,1.16796,2554.3,2553.7,4.96884686]
[1724915257219,7.46753775,2554.2,2553.7,1.01985329]
[1724915257512,0.39143,2553.9,2553.6,1.01985329]
[1724915257814,4.84535341,2553.8,2553.7,40.8]
[1724915258020,5.66985341,2553.8,2553.7,40.8]
[1724915258217,1.21593,2553.8,2553.7,40.8]
[1724915258605,5.3980284,2553.8,2553.7,40.8]
[1724915258909,8.9225984,2553.8,2553.7,40.8]
[1724915259310,9.3140384,2553.8,2553.5,3.21366843]
[1724915259615,5.3980384,2553.8,2553.5,3.21366843]
[1724915259807,0.39145,2553.7,2553.6,40.8]
[1724915260005,5.3980384,2553.8,2553.6,40.8]
[1724915260215,4.83079257,2553.7,2553.6,40.8]
[1724915260518,6.01024257,2553.7,2553.6,40.8]
[1724915260813,9.92624257,2553.7,2553.6,40.8]
[1724915261206,10.31769257,2553.7,2553.6,40.8]
[1724915262521,9.92624257,2553.7,2553.6,40.8]
[1724915266609,9.92624257,2553.7,2553.5,0.00586843]
[1724915266911,0.39146,2553.6,2553.5,0.00586843]
[1724915267321,8.45743149,2553.6,2553.5,0.00586843]
[1724915268017,17.66523149,2553.6,2553.5,0.00586843]
[1724915268317,0.39151,2553.3,2553.2,40.8]
[1724915268809,8.65293308,2553.3,2553.0,3.59935]
[1724915269014,1.5752,2553.2,2553.0,3.59935]
[1724915269416,1.5752,2553.2,2553.1,40.8]
[1724915269618,1.96672,2553.2,2553.1,40.8]
[1724915269919,10.06305871,2553.2,2553.1,40.8]
[1724915270322,10.06305871,2553.2,2553.0,3.2078]
[1724915270627,6.14625871,2553.2,2553.0,3.2078]
[1724915270815,5.75473871,2553.2,2553.0,3.2078]
[1724915271016,5.75473871,2553.2,2553.0,3.59935]
[1724915271216,5.75473871,2553.2,2553.0,3.2078]
[1724915271416,5.75473871,2553.2,2553.1,0.39154]
[1724915271417,4.94803871,2553.2,2553.1,0.39154]
[1724915271721,4.94803871,2553.2,2553.0,3.59934]
[1724915272115,4.94803871,2553.2,2553.0,3.59935]
[1724915273515,4.94803871,2553.2,2553.0,3.2078]
[1724915273717,0.807,2553.1,2553.0,3.2078]
[1724915274124,5.24722467,2553.1,2553.0,3.2078]
[1724915275025,4.44022467,2553.1,2553.0,3.59935]
[1724915275327,4.44022467,2553.1,2553.0,3.2078]
[1724915276822,4.44022467,2553.1,2553.0,3.59935]
[1724915277726,4.44022467,2553.1,2553.0,3.2078]
[1724915278319,4.44022467,2553.1,2553.0,3.59935]
[1724915280032,4.50279181,2553.3,2553.1,0.39153]
[1724915280223,1.5914,2553.4,2553.1,0.39153]
[1724915280534,4.18270945,2553.3,2553.1,0.39153]
[1724915280729,4.18270945,2553.3,2553.2,0.39152]
[1724915281830,4.18270945,2553.3,2553.1,0.39153]
[1724915282230,4.18270945,2553.3,2553.2,0.39152]
[1724915285329,4.18270945,2553.3,2553.2,4.30832]
[1724915285531,0.7424,2553.7,2553.5,0.39147]
[1724915286046,4.07541405,2553.6,2553.4,3.2078]
[1724915286333,4.07541405,2553.6,2553.3,1.0323]
[1724915287535,4.07541405,2553.6,2553.3,0.3915]
[1724915288424,4.07541405,2553.6,2553.1,4.60240887]
[1724915288630,4.46687405,2553.6,2553.1,4.60240887]
[1724915288837,4.07541405,2553.6,2553.2,0.39152]
[1724915289136,4.46687405,2553.6,2553.1,4.60240887]
[1724915289830,4.46687405,2553.6,2553.1,3.79150887]
[1724915290234,0.39148,2553.5,2553.1,3.39997887]
[1724915290529,4.49357573,2553.4,2553.1,3.2078]
[1724915290728,5.27847573,2553.4,2553.1,3.2078]
[1724915290932,4.88697573,2553.4,2553.1,3.59934]
[1724915291138,5.27846573,2553.4,2553.1,3.2078]
[1724915291733,4.88697573,2553.4,2553.1,3.2078]
[1724915291925,5.27847573,2553.4,2553.1,3.2078]
[1724915294239,5.27846573,2553.4,2553.1,3.59933]
[1724915294534,5.27846573,2553.4,2553.1,3.2078]
[1724915294729,0.39151,2553.3,2553.1,3.2078]
[1724915294930,1.5541,2553.2,2553.1,3.2078]
[1724915295235,5.85676329,2553.2,2553.1,3.2078]
[1724915299040,4.30266329,2553.2,2553.1,3.59934]
[1724915299238,4.30266329,2553.2,2553.1,5.5575236]
[1724915299239,3.71521606,2553.2,2553.1,5.5575236]
[1724915299441,4.48079233,2553.3,2553.1,5.5575236]
[1724915299641,0.7849,2553.4,2553.2,1.02205103]
[1724915299840,0.7849,2553.4,2553.1,4.62139103]
[1724915300048,4.38004344,2553.3,2553.1,4.62139103]
[1724915300439,4.38004344,2553.3,2553.2,1.41357103]
[1724915300644,4.38004344,2553.3,2553.2,1.83004662]
[1724915300838,4.38004344,2553.3,2553.2,1.43852662]
[1724915302136,4.38004344,2553.3,2553.2,3.39665172]
[1724915302536,4.38004344,2553.3,2553.2,2.37460069]
[1724915303246,4.38004344,2553.3,2553.2,3.9039002]
[1724915303837,4.38004344,2553.3,2553.2,3.48742461]
[1724915304142,4.38004344,2553.3,2553.2,3.90415658]
[1724915306647,4.38004344,2553.3,2553.2,3.90415815]
[1724915306834,4.38004344,2553.3,2553.2,4.29567815]
[1724915309146,4.38004344,2553.3,2553.2,2.76637864]
[1724915309945,4.38004344,2553.3,2553.2,4.80544466]
[1724915310145,4.38004344,2553.3,2553.2,8.72144354]
[1724915310549,4.38004344,2553.3,2553.2,12.63824354]
[1724915310944,4.38004344,2553.3,2553.2,10.18244555]
[1724915311150,4.38004344,2553.3,2553.2,10.59858204]
[1724915311454,4.38004344,2553.3,2553.2,13.7872884]
[1724915311954,1.63175685,2553.6,2553.4,0.39149]
[1724915312143,0.7797,2553.5,2553.3,2.43852813]
[1724915312348,4.9894407,2553.5,2553.4,2.3743065]
[1724915313053,8.9054407,2553.5,2553.4,3.90962038]
[1724915313750,4.9894407,2553.5,2553.4,3.90962038]
[1724915314247,4.9894407,2553.5,2553.4,3.49330481]
[1724915314450,4.9894407,2553.5,2553.4,3.9098315]
[1724915315354,4.9894407,2553.5,2553.4,3.90987353]
[1724915316445,4.9894407,2553.5,2553.4,3.90988461]
[1724915317856,4.9894407,2553.5,2553.4,3.49335792]
[1724915318151,4.9894407,2553.5,2553.4,3.90988729]
[1724915318749,8.9054407,2553.5,2553.4,3.3988853]
[1724915319055,0.39149,2553.4,2553.2,1.02431189]
[1724915319243,0.7674,2553.3,2553.2,1.02431189]
[1724915319449,5.74934423,2553.3,2553.2,1.44105166]
[1724915319649,9.66614423,2553.3,2553.2,1.44105166]
[1724915320255,0.39152,2553.2,2553.1,1.02431189]
[1724915320555,0.39152,2553.2,2552.8,0.00392071]
[1724915320556,14.71602614,2553.2,2552.8,1.0282326]
[1724915320752,3.77157,2552.9,2552.8,0.00392071]
[1724915320952,3.77157,2552.9,2552.8,0.42091576]
[1724915321154,15.10759614,2552.9,2552.8,0.42091576]
[1724915321346,15.10759614,2552.9,2552.8,0.00392071]
[1724915321949,19.92469614,2552.9,2552.8,0.00392071]
[1724915324057,0.39165,2552.4,2552.2,1.02431189]
[1724915324257,0.39165,2552.4,2552.1,1.53531388]
[1724915324258,2.1779,2552.3,2552.1,1.02431189]
[1724915324562,0.7602,2552.2,2552.0,4.23211189]
[1724915324751,1.80169,2552.1,2552.0,4.23211189]
[1724915325057,6.01184968,2552.1,2552.0,3.2078]
[1724915325761,5.62015968,2552.1,2552.0,3.2078]
[1724915325966,7.60015968,2552.1,2552.0,3.2078]
[1724915327062,8.40295968,2552.1,2552.0,3.2078]
[1724915327264,8.79464968,2552.1,2552.0,3.2078]
[1724915327759,4.21015968,2552.1,2552.0,7.51791]
[1724915328063,4.21015968,2552.1,2552.0,13.51791]
[1724915328364,4.21015968,2552.1,2552.0,57.71855842]
[1724915328563,3.2307264,2552.1,2552.0,59.60636041]
[1724915329163,0.00586843,2552.3,2552.2,0.39168]
[1724915329358,0.00586843,2552.3,2552.2,7.69310314]
[1724915329561,0.00586843,2552.3,2552.2,17.61150314]
[1724915329863,0.00586843,2552.3,2552.2,58.41150314]
[1724915330567,0.00586843,2552.3,2552.2,49.02150314]
[1724915332567,0.00586843,2552.3,2552.2,55.02150314]
[1724915333461,0.00586843,2552.3,2552.2,53.48618926]
[1724915333660,0.00586843,2552.3,2552.2,55.01984845]
[1724915333859,0.00586843,2552.3,2552.2,53.48618926]
[1724915334067,5.6611,2553.1,2552.2,57.6583444]
[1724915334366,4.28473303,2553.0,2552.9,0.39157]
[1724915335758,4.28473303,2553.0,2552.8,1.14238]
[1724915336165,4.28473303,2553.0,2552.9,0.39157]
[1724915340065,4.28473303,2553.0,2552.8,3.79411514]
[1724915340580,4.28473303,2553.0,2552.8,3.59938]
[1724915342075,4.28473303,2553.0,2552.9,0.39157]
[1724915342672,4.28473303,2553.0,2552.9,4.30837]
[1724915342869,4.28473303,2553.0,2552.9,5.66777]
[1724915343180,4.28473303,2553.0,2552.9,9.06534563]
[1724915343466,4.28473303,2553.0,2552.9,9.57651592]
[1724915344072,4.28473303,2553.0,2552.9,9.57639697]
[1724915344275,4.28473303,2553.0,2552.9,9.5763434]
[1724915344463,0.00586843,2553.2,2553.1,0.39154]
[1724915344668,0.00586843,2553.2,2553.1,3.59934]
[1724915344962,0.00586843,2553.2,2553.1,8.53785199]
[1724915345372,0.00586843,2553.2,2553.1,7.51614]
[1724915345573,0.00586843,2553.2,2553.1,48.31614]
[1724915347773,4.19924028,2553.2,2553.1,51.55814]
[1724915348276,4.19924028,2553.2,2553.1,52.57985199]
[1724915350272,4.19924028,2553.2,2553.1,52.76978643]
[1724915352271,0.97928951,2553.2,2553.1,55.65629918]
[1724915352472,0.45877672,2553.2,2553.1,55.65629918]
[1724915354379,0.45877672,2553.2,2553.1,61.65619557]
[1724915354574,0.00586843,2553.4,2553.3,0.39151]
[1724915355082,0.00586843,2553.4,2553.3,4.30831]
[1724915357773,0.00586843,2553.4,2553.3,7.51611]
[1724915359290,0.00207473,2553.4,2553.3,7.51611]
[1724915359491,0.00207473,2553.4,2553.3,4.30831]
[1724915359681,0.00207473,2553.4,2553.3,7.51611]
[1724915360775,1.5399,2553.6,2553.5,1.37018]
[1724915360977,3.2078,2554.3,2553.5,43.1887]
[1724915360978,0.752,2554.2,2553.5,43.1887]
[1724915361175,2.73237,2554.2,2553.8,3.2078]
[1724915361380,1.41,2554.1,2553.8,3.2078]
[1724915361781,4.39749962,2554.0,2553.8,3.2078]
[1724915362287,8.31269962,2554.0,2553.8,3.2078]